{"text_format":"1","workbook":"xlsx","n_sheets":6,"sheets":["CLASSIFICAÇÃO GERAL 2025","ago2025","set2025","out2025","nov2025","dez2025"],"not_rendered":{"charts":0,"images":2,"macros":1,"external_links":0,"defined_names":1,"comments":0,"pivot_tables":0},"unopened":[],"bounds":{"document_bytes":16777216,"sheet_cells":100000,"rows_first":2000,"rows_last":500,"rows_between":2000,"halvings":0,"cell_chars":16384,"cell_head_chars":4096},"cells_cut":0,"cells_raw":0,"read":"whole","date_system":"1900"}

{"sheet":"CLASSIFICAÇÃO GERAL 2025","index":0,"n_rows":138,"n_cols":5,"rows_kept":138,"cut":false,"hidden":false,"merged":[[0,0,0,4],[1,0,1,4]]}
["CLASSIFICAÇÃO GERAL ACPA – TEMPORADA 2025 QUARTA"]
["COLEIRO FIBRA","Pássaro","Proprietário","Origem","Pontos"]
["POSIÇÃO","NOME DO PÁSSARO","NOME DO PROPRIETÁRIO","ORIGEM (CIDADE)","PONTUAÇÃO"]
["1º","BALINHA","WL FAMÍLIA MINGAL","PARAÍBA DO SUL",{"$f":"23+20+18+19+24+23+22+24+30+26+19+21+16+18+16+14","v":333}]
["2º","PANTERA NEGRA","PABLO","ITAIPAVA",{"$f":"26+23+26+26+24+23+23+26+18+26+22+22+21","v":306}]
["3º","FOGUETE","GABRIEL/LEANDRO","PARAÍBA DO SUL",{"$f":"21+15+22+15+28+20+18+19+20+23+18+17","v":236}]
["4º","MAGNÍFICO","GABRIEL/LEANDRO","PARAÍBA DO SUL",{"$f":"26+22+21+18+17+17+13+21+13+30+24","v":222}]
["5º","TRUQUE","REGINALDO","PETRÓPOLIS",{"$f":"20+17+30+26+28+20+28+14+14+14","v":211}]
["6º","DO BRONX","PABLO","PETRÓPOLIS",{"$f":"22+28+28+16+15+17+22","v":148}]
["7º","PIVETE","GILSON/GUSTAVO","S. DUMONT/TRÊS RIOS",{"$f":"16+16+14+16+17+14+18+24","v":135}]
["8º","PODEROSO CHEFINHO","RODRIGO/BRUNO","PETRÓPOLIS",{"$f":"22+21+19+18+17+18","v":115}]
["9º","FARRAPO DOIDO","MANDÍBULA","PETRÓPOLIS",{"$f":"22+21+18+17+19","v":97}]
["10º","GATILHO","PEDRO","JUIZ DE FORA",{"$f":"30+30+28","v":88}]
["11º","CHARADA","UESLEI","PARAÍBA DO SUL",{"$f":"24+23+13+13+14","v":87}]
["12º","CHUCALHO DE COBRA","LUCIMAR/L. HENRIQUE","TRÊS RIOS",{"$f":"30+30+24","v":84}]
["13º","FORASTEIRO","WL FAMÍLIA MINGAL","PARAÍBA DO SUL",{"$f":"23+23+21+17","v":84}]
["14º","FARAÓ","ANDRÉ/ERICK","PARAÍBA DO SUL",{"$f":"28+28+21","v":77}]
["15º","TUBARÃO","RONYELLE","TRÊS RIOS",{"$f":"18+17+18+19","v":72}]
["16º","IMPERADOR","LEANDRO/GABRIEL","PARAÍBA DO SUL",{"$f":"20+28+23","v":71}]
["17º","REI DO FURDUNÇO","WILLIAN","TRÊS RIOS",{"$f":"21+24+26","v":71}]
["18º","EXPRESSO","RAUANI VALLE","TRÊS RIOS",{"$f":"16+23+30","v":69}]
["19º","GARGALHADA","CICINHO","PARAÍBA DO SUL",{"$f":"19+13+19+13","v":64}]
["20º","CARRASCO","DANILO MOREIRA","TRÊS RIOS",{"$f":"17+21+24","v":62}]
["21º","JAMELÃO","CH FAMÍLIA MINGAL","PARAÍBA DO SUL",{"$f":"17+15+26","v":58}]
["22º","FÉ","MARCÃO","JUIZ DE FORA",{"$f":"28+28","v":56}]
["23º","PAVAROTTI","DOUGLAS/RAFAEL TOP DA GAIOLAS","JUIZ DE FORA",{"$f":"26+30","v":56}]
["24º","NEXTEL","NATHAN","LEVY GASPARIAN",{"$f":"26+28","v":54}]
["25º","PIT BULL","JOÃO MARCOS","AREAL",{"$f":"30+24","v":54}]
["26º","REI DA RUA","ANDRÉ LUIS","PARAÍBA DO SUL",{"$f":"26+26","v":52}]
["27º","FÓRMULA 1","REGINALDO","PETRÓPOLIS",{"$f":"23+28","v":51}]
["28º","JÓ","ANDRÉ LUIS","PARAÍBA DO SUL",{"$f":"30+17","v":47}]
["29º","ROMÁRIO","CH FAMÍLIA MINGAL","PARAÍBA DO SUL",{"$f":"22+22","v":44}]
["30º","URSO NEGRO","JUNINHO PACHECO","TRÊS RIOS",{"$f":"30+14","v":44}]
["31º","RENEGADO","GABRIEL","PETRÓPOLIS",{"$f":"24+15","v":39}]
["32º","BELGA","RODRIGO/BRUNO","PETRÓPOLIS",{"$f":"20+17","v":37}]
["33º","TROVÃO","LUCIMAR/LUIZ HENRIQUE","TRÊS RIOS",{"$f":"13+24","v":37}]
["34º","ANIMAL","DANILO MOREIRA","TRÊS RIOS",{"$f":"16+20","v":36}]
["35º","DELEGADO","KAUAN","PATY DO ALFERES",{"$f":"21+15","v":36}]
["36º","OURO FINO","LUCAS","TRÊS RIOS",{"$f":"22+14","v":36}]
["37º","XODÓ","GUSTAVO/GILSON","TRÊS RIOS/S. DUMONT",{"$f":"16+20","v":36}]
["38º","BINHA PRETO","EULER","TRÊS RIOS",{"$f":"16+19","v":35}]
["39º","MOHAMED","JOÃO PEDRO","PARAÍBA DO SUL",{"$f":"15+20","v":35}]
["40º","CARRASCO","LUCAS","TRÊS RIOS",{"$f":"13+21","v":34}]
["41º","SAMA","LUCAS","TRÊS RIOS",{"$f":"13+21","v":34}]
["42º","ABRAÃO","WILLIAN","MATIAS BARBOSA",{"$f":"20+13","v":33}]
["43º","EL LOUCO","JOSÉ SERGIO","PARAÍBA DO SUL",{"$f":"20+13","v":33}]
["44º","RAGNAR","DANILO MOREIRA","TRÊS RIOS",{"$f":"18+14","v":32}]
["45º","SONIC","CT ALPHA","PARAÍBA DO SUL",{"$f":"15+16","v":31}]
["46º",51,"DANIEL","JUIZ DE FORA",30]
["47º","BICO DE PRATA","GUSTAVO","PARAÍBA DO SUL",{"$f":"17+13","v":30}]
["48º","BRAD PITT","FELIPE ROCHA","TRÊS RIOS",30]
["49º","COMENDADOR","PEDRO","JUIZ DE FORA",30]
["50º","DIGNO","JUNINHO/JÚLIO","TRÊS RIOS",30]
["51º","LEÃO BRANCO","CUNHA","CARATINGA",30]
["52º","MUTLEY","MARCÃO","JUIZ DE FORA",30]
["53º","PRESTÍGIO","RUAN","PARAÍBA DO SUL",{"$f":"15+15","v":30}]
["54º","ÊXTASE","KLEBER","AREAL",28]
["55º","FANTÁSTICO","FELIPE CRECK","MIGUEL PEREIRA",28]
["56º","GABIGOL","RAPHAEL/ROGÉRIO","MATIAS BARBOSA",28]
["57º","MANDA CHUVA","JULIO","MIGUEL PEREIRA",28]
["58º","SURFISTA","CAÍQUE/KITO","MAR DE ESPANHA",28]
["59º","BOTA CARA","GABRIEL/DJ RODRIGO","PARAÍBA DO SUL",26]
["60º","FILHOTE","FAMÍLIA MINGAL","PARAÍBA DO SUL",26]
["61º","MEGAMENTE","FLÁVIO","PATY DO ALFERES",26]
["62º","PÉROLA NEGRA","ROMÁRIO OLIVEIRA","PETRÓPOLIS",26]
["63º","JILÓ","GABRIEL/WL F. MINGAL","PARAÍBA DO SUL",24]
["64º","JIRAIA","GABRIEL/THIAGO","PARAÍBA DO SUL",24]
["65º","K2","PEDRO/GUSTAVO","JUIZ DE FORA",24]
["66º","LAMBADA","DANIEL","ITABERABA",24]
["67º","MALOQUINHA","ERICK","MATIAS BARBOSA",24]
["68º","PINTA NEGRA","RATINHO","VALENÇA",24]
["69º",762,"DEIVID","JUIZ DE FORA",23]
["70º","JÓIA RARA","GILSON/GUSTAVO","TRÊS RIOS/S. DUMONT",23]
["71º","MAVERICK","ANDRÉ LUIS","PARAÍBA DO SUL",23]
["72º","POLÊMICO","FAMÍLIA MINGAL","PARAÍBA DO SUL",23]
["73º","REMI NETO","RAFAEL","PARAÍBA DO SUL",23]
["74º","SHOGUN","REGINALDO","PETRÓPOLIS",23]
["75º","DIAMANTE BLACK","RAFAEL","JUIZ DE FORA",22]
["76º","DUBAI","BRUNO","TRÊS RIOS",22]
["77º","PERIGO","JOANES","PARAÍBA DO SUL",22]
["78º","SHEIK","JONAS","TRÊS RIOS",22]
["79º","TAURUS","HENRIQUE","ANTA",22]
["80º","V10","JÚNIOR PACHECO","TRÊS RIOS",22]
["81º","ALMEJADO","GABRIEL/DJ RODRIGO","PARAÍBA DO SUL",21]
["82º","BMW","JOÃO PEDRO","PARAÍBA DO SUL",21]
["83º","IMPERADOR","GILSON/GUSTAVO","SANTOS DUMONT",21]
["84º","MAGO","CLÓVIS","TRÊS RIOS",21]
["85º","ABISMO","GUSTAVO/JHONATA","PARAÍBA DO SUL",20]
["86º","É O AÇO","RODRIGO","VASSOURAS",20]
["87º","EL DOIDO","JONAS","TRÊS RIOS",20]
["88º","INVASÃO","WATILA","JUIZ DE FORA",20]
["89º","NOVINHO","XEIA","PATY DO ALFERES",20]
["90º","YTACHI","DERLANE","UBA",20]
["91º","ABUSADO","ELVIS","JUIZ DE FORA",19]
["92º","BEIÇOLA","FABIANO","TRÊS RIOS",19]
["93º","GOKU","LEONARDO","SANTOS DUMONT",19]
["94º","GUERREIRO","ANTÔNIO MENEGUIT","CACHOEIRAS DE MACACU",19]
["95º","MIRAGEM","DIEGO","VISCONDE DO RIO BRANCO",19]
["96º","NATURAL","FERNANDO","PETRÓPOLIS",19]
["97º","PETER PAN","RAFAEL","PARAÍBA DO SUL",19]
["98º","RABO DE PEIXE","LUCIMAR/L. HENRIQUE","TRÊS RIOS",19]
["99º","RED BULL","JUNIN","JUIZ DE FORA",19]
["100º","GALILEU","DANIEL/LUCAS","(?)",18]
["101º","GUERREIRO","UELINTON TOM","TRÊS RIOS",18]
["102º","MALUCO BELEZA","ZAL","JUIZ DE FORA",18]
["103º","PESADELO","HENRIQUE","ANTA",18]
["104º","RARIDADE","CT ALPHA","PARAÍBA DO SUL",18]
["105º","HERÓI DE GUERRA","RODRIGO/BRUNO","PETRÓPOLIS",17]
["106º","MARRENTO","GUSTAVO/GILSON","SANTOS DUMONT",17]
["107º","MENINO DO MORRO","GABRIEL/VLADIMIR","PARAÍBA DO SUL",17]
["108º","BICO BRANCO","LOIRIN","PARAÍBA DO SUL",16]
["109º","ESPOLETA","RAFAEL","NITERÓI",16]
["110º","FIEL","DANIEL","JUIZ DE FORA",16]
["111º","LAMPIÃO","ZECA/LUÍS","CHIADOR",16]
["112º","PIRATA","ROMÁRIO OLIVEIRA","PETRÓPOLIS",16]
["113º","SHARK","DINO","MATIAS BARBOSA",16]
["114º","TREM","MARCO AURÉLIO","PARAÍBA DO SUL",16]
["115º","BISON","NATHAN","LEVY GASPARIAN",15]
["116º","COICE DE MULA","RAFAEL","PETRÓPOLIS",15]
["117º","ESCOBAR","XEIA","PATY DO ALFERES",15]
["118º","GARNIZE","PABLO","ITAIPAVA",15]
["119º","SAGA","MARQUINHO","TRÊS RIOS",15]
["120º","TET","THIAGO/RONYELLE","TRÊS RIOS",15]
["121º","VALE TUDO","MANDÍBULA","PETRÓPOLIS",15]
["122º","ZÉ INACIO","EULER","TRÊS RIOS",15]
["123º","ABUTRE","RODRIGO/BRUNO","PETRÓPOLIS",14]
["124º","BOLT","RODRIGO/BRUNO","PETRÓPOLIS",14]
["125º","FRAGMENTO","MANDÍBULA","PETRÓPOLIS",14]
["126º","GAROTO","BRUNO","TRÊS RIOS",14]
["127º","MALIBU","NICOLAS","PETRÓPOLIS",14]
["128º","RAT","THIAGO/RONYELLE","TRÊS RIOS",14]
["129º","WOLVERINE","XANDÃO","PARAÍBA DO SUL",14]
["130º","WOLVERINE","KAUAN","PATY DO ALFERES",14]
["131º","DUBAI","VALDO","TRÊS RIOS",13]
["132º","MAESTRO","GABRIEL/PAIVA","PARAÍBA DO SUL",13]
["133º","MÁQUINA JR","GABRIEL/EDILSON","PETRÓPOLIS",13]
["134º","VENENO","XANDI","?",13]
["135º","XODÓ","CLÓVIS","TRÊS RIOS",13]

{"sheet":"ago2025","index":1,"n_rows":22,"n_cols":27,"rows_kept":22,"cut":false,"hidden":false,"merged":[[0,0,0,5],[0,7,0,12],[0,14,0,19],[0,21,0,26]]}
["06/08/2025 (QUARTA-FEIRA)",null,null,null,null,null,null,"13/08/2025 (QUARTA-FEIRA)",null,null,null,null,null,null,"20/08/2025 (QUARTA-FEIRA)",null,null,null,null,null,null,"27/08/2025 (QUARTA-FEIRA)"]
["POS.","PÁSSARO","PROPRIETÁRIO","ORIGEM","CANTOS","PONTOS",null,"POS.","PÁSSARO","PROPRIETÁRIO","ORIGEM","CANTOS","PONTOS",null,"POS.","PÁSSARO","PROPRIETÁRIO","ORIGEM","CANTOS","PONTOS",null,"POS.","PÁSSARO","PROPRIETÁRIO","ORIGEM","CANTOS","PONTOS"]
["1º","VIDIGAL","MARCELO","TRÊS RIOS",144,30,null,"1º","BYD","RUAN FERREIRA","MAR DE ESPANHA",216,30,null,"1º","JOIA RARA","JUNINHO","TRÊS RIOS",200,30,null,"1º","CHARADA","HENRIQUE","PARAÍBA DO SUL",181,30]
["2º","KAISER","RODRIGO/BRUNO","PETRÓPOLIS",142,28,null,"2º","22 MALUCO","BIDU","PATY DO ALFERES",169,28,null,"2º","TUBARÃO","RONYELLE","TRÊS RIOS",143,28,null,"2º","FARRAPO DOIDO","RODRIGO/BRUNO","PETRÓPOLIS",137,28]
["3º","JAMELÃO","CH FAMÍLIA MINGAL","PARAÍBA DO SUL",116,26,null,"3º","CHUCALHO DE COBRA","LUCIMAR/LUIZ HENRIQUE","TRÊS RIOS",167,26,null,"3º","VENENO","LEANDRO/GABRIEL","PARAÍBA DO SUL",129,26,null,"3º","TENEBROSO","JONAS","TRÊS RIOS",125,26]
["4º","MAGNÍFICO","CH FAMÍLIA MINGAL","PARAÍBA DO SUL",97,24,null,"4º","CARRASCO","RAFAEL POPÓ","TRÊS RIOS",142,24,null,"4º","DONATELLO","DANIEL/JOÃO PEDRO","PARAÍBA DO SUL",127,24,null,"4º","CICATRIZ","DOUGLAS","JUIZ DE FORA",120,24]
["5º","CALIBRE 12","HENRIQUE","ANTA",90,23,null,"5º","KAISER","RODRIGO/BRUNO","PETRÓPOLIS",140,23,null,"5º","TENEBROSO","JONINHA","TRÊS RIOS",120,23,null,"5º","TUBARÃO","RONYELLE","TRÊS RIOS",113,23]
["6º","FÚRIA","KLEBER","AREAL",62,22,null,"6º","REI DA RUA","ANDRÉ AGUIAR","PARAÍBA DO SUL",132,22,null,"6º","CAVIAR","BRUNO","TRÊS RIOS",94,22,null,"6º","MENTOR","JOÃO MARCOS","AREAL",109,22]
["7º",null,null,null,null,null,null,"7º","ZÉ INACIO","EULER","TRÊS RIOS",132,21,null,"7º","ARCANJO","FAMÍLIA MINGAL","PARAÍBA DO SUL",88,21,null,"7º","CAVIAR","BRUNO","TRÊS RIOS",104,21]
["8º",null,null,null,null,null,null,"8º","FARRAPO DOIDO","RODRIGO/BRUNO","PETRÓPOLIS",127,20,null,"8º","FAIXA PRETA","JANDERSON","TRÊS RIOS",81,20,null,"8º","NOVINHO","MARCELO XEIA","PATY DO ALFERES",97,20]
["9º",null,null,null,null,null,null,"9º","LIGEIRO","ANDERSON","RIO DE JANEIRO",125,19,null,"9º","CABALLO","GILSON/GUSTAVO","S. DUMONT/TRÊS RIOS",62,19,null,"9º","ABUTRE","JOÃO MARCOS","AREAL",92,19]
["10º",null,null,null,null,null,null,"10º","ABUTRE","JOÃO MARCOS","AREAL",104,18,null,"10º",null,null,null,null,null,null,"10º","OZI","HENRIQUE","ANTA",88,18]
["11º",null,null,null,null,null,null,"11º","ZUMBI","FAMÍLIA HONORATO","PARAÍBA DO SUL",92,17,null,"11º",null,null,null,null,null,null,"11º","RABO DE PEIXE","LUCIMAR/LUIZ HENRIQUE","TRÊS RIOS",83,17]
["12º",null,null,null,null,null,null,"12º","FREE FIRE","VITOR","TRÊS RIOS",92,16,null,"12º",null,null,null,null,null,null,"12º","LELEI","EULER","TRÊS RIOS",81,16]
["13º",null,null,null,null,null,null,"13º","CALIBRE 12","HENRIQUE","?",86,15,null,"13º",null,null,null,null,null,null,"13º","ESCOBAR","MARCELO XEIA","PATY DO ALFERES",77,15]
["14º",null,null,null,null,null,null,"14º","ABUSADO","BRUNO","MIGUEL PEREIRA",73,14,null,"14º",null,null,null,null,null,null,"14º","TONINHO","SANDRO","ANTA",76,14]
["15º",null,null,null,null,null,null,"15º",null,null,null,null,null,null,"15º",null,null,null,null,null,null,"15º","VENON","MURILO","TRÊS RIOS",72,13]
["16º",null,null,null,null,null,null,"16º",null,null,null,null,null,null,"16º",null,null,null,null,null,null,"16º","WOLVERINE","XANDÃO","TRÊS RIOS",60]
["17º",null,null,null,null,null,null,"17º",null,null,null,null,null,null,"17º",null,null,null,null,null,null,"17º","MALTE","GILBERSON DO VALLLE","TRÊS RIOS",36]
["18º",null,null,null,null,null,null,"18º",null,null,null,null,null,null,"18º",null,null,null,null,null,null,"18º"]
["19º",null,null,null,null,null,null,"19º",null,null,null,null,null,null,"19º",null,null,null,null,null,null,"19º"]
["20º",null,null,null,null,null,null,"20º",null,null,null,null,null,null,"20º",null,null,null,null,null,null,"20º"]

{"sheet":"set2025","index":2,"n_rows":42,"n_cols":27,"rows_kept":42,"cut":false,"hidden":false,"merged":[[0,0,0,5],[0,7,0,12],[0,14,0,19],[0,21,0,26]]}
["03/09/2025 (QUARTA-FEIRA)",null,null,null,null,null,null,"10/09/2025 (QUARTA-FEIRA)",null,null,null,null,null,null,"17/09/2025 (QUARTA-FEIRA)",null,null,null,null,null,null,"24/09/2025 (QUARTA-FEIRA)"]
["POS.","PÁSSARO","PROPRIETÁRIO","ORIGEM","CANTOS","PONTOS",null,"POS.","PÁSSARO","PROPRIETÁRIO","ORIGEM","CANTOS","PONTOS",null,"POS.","PÁSSARO","PROPRIETÁRIO","ORIGEM","CANTOS","PONTOS",null,"POS.","PÁSSARO","PROPRIETÁRIO","ORIGEM","CANTOS","PONTOS"]
["1º","CHUCALHO DE COBRA","LUCIMAR/L. HENRIQUE","TRÊS RIOS",165,30,null,"1º","CHUCALHO DE COBRA","LUCIMAR/LUIZ HENRIQUE","TRÊS RIOS",181,30,null,"1º","MUTLEY","MARCÃO","JUIZ DE FORA",280,30,null,"1º","PAVAROTTI","DOUGLAS/RAFAEL TOP DA GAIOLAS","JUIZ DE FORA",221,30]
["2º","MANDA CHUVA","JULIO","MIGUEL PEREIRA",128,28,null,"2º","FANTÁSTICO","FELIPE CRECK","MIGUEL PEREIRA",135,28,null,"2º","FARÃO","ANDRÉ/ERICK","PARAÍBA DO SUL",192,28,null,"2º","FÓRMULA 1","REGINALDO","PETRÓPOLIS",180,28]
["3º","MAGNÍFICO","CH FAMÍLIA MINGAL","PARAÍBA DO SUL",128,26,null,"3º","BOTA CARA","GABRIEL/DJ RODRIGO","PARAÍBA DO SUL",134,26,null,"3º","PAVAROTTI","DOUGLAS","JUIZ DE FORA",173,26,null,"3º","REI DA RUA","ANDRÉ LUIS","PARAÍBA DO SUL",167,26]
["4º","CHARADA","HENRIQUE","PARAÍBA DO SUL",125,24,null,"4º","PINTA NEGRA","RATINHO","VALENÇA",128,24,null,"4º","CARRASCO","DANILO MOREIRA","TRÊS RIOS",163,24,null,"4º","TROVÃO","LUCIMAR/LUIZ HENRIQUE","TRÊS RIOS",137,24]
["5º","BALINHA","FAMÍLIA MINGAL","PARAÍBA DO SUL",124,23,null,"5º","CHARADA","HENRIQUE","PARAÍBA DO SUL",125,23,null,"5º","FÓRMULA 1","REGINALDO","PETRÓPOLIS",145,23,null,"5º","FORASTEIRO","WL FAMÍLIA MINGAL","PARAÍBA DO SUL",135,23]
["6º","DIAMANTE BLACK","RAFAEL","JUIZ DE FORA",120,22,null,"6º","MAGNÍFICO","CH FAMÍLIA MINGAL","PARAÍBA DO SUL",117,22,null,"6º","FARRAPO DOIDO","RODRIGO/BRUNO","PETRÓPOLIS",144,22,null,"6º","DUBAI","BRUNO","TRÊS RIOS",131,22]
["7º","DELEGADO","KAUAN","PATY DO ALFERES",117,21,null,"7º","CARRASCO","DANILO MOREIRA","TRÊS RIOS",112,21,null,"7º","MAGNÍFICO","CH FAMÍLIA MINGAL","PARAÍBA DO SUL",140,21,null,"7º","BMW","JOÃO PEDRO","PARAÍBA DO SUL",130,21]
["8º","NOVINHO","XEIA","PATY DO ALFERES",115,20,null,"8º","BALINHA","WL FAMÍLIA MINGAL","PARAÍBA DO SUL",108,20,null,"8º","TRUQUE","REGINALDO","PETRÓPOLIS",137,20,null,"8º","YTACHI","DERLANE","UBA",121,20]
["9º","RABO DE PEIXE","LUCIMAR/L. HENRIQUE","TRÊS RIOS",110,19,null,"9º","NATURAL","FERNANDO","PETRÓPOLIS",100,19,null,"9º","ABUSADO","ELVIS","JUIZ DE FORA",136,19,null,"9º","BALINHA","WL FAMÍLIA MINGAL","PARAÍBA DO SUL",120,19]
["10º","TUBARÃO","RONYELLE","TRÊS RIOS",109,18,null,"10º","GUERREIRO","UELINTON TOM","TRÊS RIOS",100,18,null,"10º","BALINHA","WL FAMÍLIA MINGAL","PARAÍBA DO SUL",125,18,null,"10º","TUBARÃO","RONYELLE","TRÊS RIOS",120,18]
["11º","CARRASCO","DANILO","TRÊS RIOS",86,17,null,"11º","TUBARÃO","RONYELLE","TRÊS RIOS",84,17,null,"11º","BELGA","RODRIGO/BRUNO","PETRÓPOLIS",124,17,null,"11º","TRUQUE","REGINALDO","PETRÓPOLIS",109,17]
["12º","BICO BRANCO","LOIRIN","PARAÍBA DO SUL",85,16,null,"12º","PIVETE","GILSON/GUSTAVO","S. DUMONT/TRÊS RIOS",81,16,null,"12º","PIVETE","GUSTAVO/GILSON","TRÊS RIOS",115,16,null,"12º","XODO","GUSTAVO/GILSON","TRÊS RIOS/S. DUMONT",109,16]
["13º","ESCOBAR","XEIA","PATY DO ALFERES",72,15,null,"13º","SAGA","MARQUINHO","TRÊS RIOS",78,15,null,"13º","VALE TUDO","MANDÍBULA","PETRÓPOLIS",110,15,null,"13º","ZÉ INACIO","EULER","TRÊS RIOS",108,15]
["14º","WOLVERINE","XANDÃO","PARAÍBA DO SUL",63,14,null,"14º","GAROTO","BRUNO","TRÊS RIOS",72,14,null,"14º","FRAGMENTO","MANDÍBULA","PETRÓPOLIS",108,14,null,"14º","PIVETE","GILSON/GUSTAVO","S. DUMONT/TRÊS RIOS",107,14]
["15º",null,null,null,null,null,null,"15º","MÁQUINA JR","GABRIEL/EDILSON","PETRÓPOLIS",60,13,null,"15º","TROVÃO","LUCIMAR/LUIZ HENRIQUE","TRÊS RIOS",107,13,null,"15º","MAESTRO","GABRIEL/PAIVA","PARAÍBA DO SUL",107,13]
["16º",null,null,null,null,null,null,"16º","BRT","SANDRO","ANTA",57,null,null,"16º","FILHOTE","FAMÍLIA MINGAL","PARAÍBA DO SUL",105,null,null,"16º","CHARADA","HENRIQUE","PARAÍBA DO SUL",102]
["17º",null,null,null,null,null,null,"17º",null,null,null,null,null,null,"17º","ABENÇOADO","RAFAEL","JUIZ DE FORA",104,null,null,"17º","HULK","CH FAMÍLIA MINGAL","PARAÍBA DO SUL",100]
["18º",null,null,null,null,null,null,"18º",null,null,null,null,null,null,"18º","MARTELETE","JONAS","TRÊS RIOS",101,null,null,"18º","MESSI","JONAS","TRÊS RIOS",97]
["19º",null,null,null,null,null,null,"19º",null,null,null,null,null,null,"19º","BOLSONARO","DJALMINHA","SAPUCAIA",100,null,null,"19º","MAGNÍFICO","CH FAMÍLIA MINGAL","PARAÍBA DO SUL",95]
["20º",null,null,null,null,null,null,"20º",null,null,null,null,null,null,"20º","BRT","SANDRO","ANTA",93,null,null,"20º","RENEGADO","HENRIQUE","ANTA",91]
["21º",null,null,null,null,null,null,"21º",null,null,null,null,null,null,"21º","GUERREIRO","ANTÔNIO MENEGUIT","CACHOEIRAS DE MACACU",91,null,null,"21º","VENON","MURILO","TRÊS RIOS",85]
["22º",null,null,null,null,null,null,"22º",null,null,null,null,null,null,"22º","BRUXO","FAMÍLIA MINGAL","PARAÍBA DO SUL",75,null,null,"22º","BELGA","RODRIGO/BRUNO","PETRÓPOLIS",81]
["23º",null,null,null,null,null,null,"23º",null,null,null,null,null,null,"23º","MENINO MALUCO","BRUNO","TRÊS RIOS",67,null,null,"23º","BRT","SANDRO","ANTA",70]
["24º",null,null,null,null,null,null,"24º",null,null,null,null,null,null,"24º","OLODUM","AMILTON","JUIZ DE FORA",50,null,null,"24º","RARIDADE","GUSTAVO/JHONATA","PARAÍBA DO SUL",58]
["25º",null,null,null,null,null,null,"25º",null,null,null,null,null,null,"25º","CHARADA","HENRIQUE","PARAÍBA DO SUL",48,null,null,"25º","MAGISTRAL","REGINALDO","PETRÓPOLIS",53]
["26º",null,null,null,null,null,null,"26º",null,null,null,null,null,null,"26º",null,null,null,null,null,null,"26º","SHEREK","JONAS","TRÊS RIOS",31]
["27º",null,null,null,null,null,null,"27º",null,null,null,null,null,null,"27º",null,null,null,null,null,null,"27º"]
["28º",null,null,null,null,null,null,"28º",null,null,null,null,null,null,"28º",null,null,null,null,null,null,"28º"]
["29º",null,null,null,null,null,null,"29º",null,null,null,null,null,null,"29º",null,null,null,null,null,null,"29º"]
["30º",null,null,null,null,null,null,"30º",null,null,null,null,null,null,"30º",null,null,null,null,null,null,"30º"]
["31º",null,null,null,null,null,null,"31º",null,null,null,null,null,null,"31º",null,null,null,null,null,null,"31º"]
["32º",null,null,null,null,null,null,"32º",null,null,null,null,null,null,"32º",null,null,null,null,null,null,"32º"]
["33º",null,null,null,null,null,null,"33º",null,null,null,null,null,null,"33º",null,null,null,null,null,null,"33º"]
["34º",null,null,null,null,null,null,"34º",null,null,null,null,null,null,"34º",null,null,null,null,null,null,"34º"]
["35º",null,null,null,null,null,null,"35º",null,null,null,null,null,null,"35º",null,null,null,null,null,null,"35º"]
["36º",null,null,null,null,null,null,"36º",null,null,null,null,null,null,"36º",null,null,null,null,null,null,"36º"]
["37º",null,null,null,null,null,null,"37º",null,null,null,null,null,null,"37º",null,null,null,null,null,null,"37º"]
["38º",null,null,null,null,null,null,"38º",null,null,null,null,null,null,"38º",null,null,null,null,null,null,"38º"]
["39º",null,null,null,null,null,null,"39º",null,null,null,null,null,null,"39º",null,null,null,null,null,null,"39º"]
["40º",null,null,null,null,null,null,"40º",null,null,null,null,null,null,"40º",null,null,null,null,null,null,"40º"]

{"sheet":"out2025","index":3,"n_rows":42,"n_cols":34,"rows_kept":42,"cut":false,"hidden":false,"merged":[[0,0,0,5],[0,7,0,12],[0,14,0,19],[0,21,0,26],[0,28,0,33]]}
["01/10/2025 (QUARTA-FEIRA)",null,null,null,null,null,null,"08/10/2025 (QUARTA-FEIRA)",null,null,null,null,null,null,"15/10/2025 (QUARTA-FEIRA)",null,null,null,null,null,null,"22/10/2025 (QUARTA-FEIRA)",null,null,null,null,null,null,"29/10/2025 (QUARTA-FEIRA)"]
["POS.","PÁSSARO","PROPRIETÁRIO","ORIGEM","CANTOS","PONTOS",null,"POS.","PÁSSARO","PROPRIETÁRIO","ORIGEM","CANTOS","PONTOS",null,"POS.","PÁSSARO","PROPRIETÁRIO","ORIGEM","CANTOS","PONTOS",null,"POS.","PÁSSARO","PROPRIETÁRIO","ORIGEM","CANTOS","PONTOS",null,"POS.","PÁSSARO","PROPRIETÁRIO","ORIGEM","CANTOS","PONTOS"]
["1º","TRUQUE","REGINALDO","PETRÓPOLIS",146,30,null,"1º","GATILHO","PEDRO","JUIZ DE FORA",231,30,null,"1º","DIGNO","JUNINHO/JÚLIO","TRÊS RIOS",178,30,null,"1º","GATILHO","PEDRO","JUIZ DE FORA",227,30,null,"1º","COMENDADOR","PEDRO","JUIZ DE FORA",174,30]
["2º","ÊXTASE","KLEBER","AREAL",143,28,null,"2º","FARAÓ","ANDRÉ/ERICK","PARAÍBA DO SUL",184,28,null,"2º","DO BRONX","PABLO","ITAIPAVA",158,28,null,"2º","TRUQUE","REGINALDO","PETRÓPOLIS",165,28,null,"2º","DO BRONX","PABLO","ITAIPAVA",174,28]
["3º","FILHOTE","FAMÍLIA MINGAL","PARAÍBA DO SUL",141,26,null,"3º","PANTERA NEGRA","PABLO","ITAIPAVA",174,26,null,"3º","TRUQUE","REGINALDO","PETRÓPOLIS",151,26,null,"3º","PANTERA NEGRA","PABLO","ITAIPAVA",149,26,null,"3º","PANTERA NEGRA","PABLO","ITAIPAVA",158,26]
["4º","BALINHA","WL FAMÍLIA MINGAL","PARAÍBA DO SUL",138,24,null,"4º","JIRAIA","GABRIEL/THIAGO","PARAÍBA DO SUL",149,24,null,"4º","MALOQUINHA","ERICK","MATIAS BARBOSA",140,24,null,"4º","BALINHA","WL FAMÍLIA MINGAL","PARAÍBA DO SUL",143,24,null,"4º","K2","PEDRO/GUSTAVO","JUIZ DE FORA",153,24]
["5º","SHOGUN","REGINALDO","PETRÓPOLIS",135,23,null,"5º","BALINHA","WL FAMÍLIA MINGAL","PARAÍBA DO SUL",146,23,null,"5º","PANTERA NEGRA","PABLO","ITAIPAVA",139,23,null,"5º","REMI NETO","RAFAEL","PARAÍBA DO SUL",142,23,null,"5º","JÓIA RARA","GILSON/GUSTAVO","TRÊS RIOS/S. DUMONT",144,23]
["6º","SHEIK","JONAS","TRÊS RIOS",119,22,null,"6º","DO BRONX","PABLO","ITAIPAVA",145,22,null,"6º","BALINHA","WL FAMÍLIA MINGAL","PARAÍBA DO SUL",137,22,null,"6º","FOGUETE","LEANDRO/GABRIEL","PARAÍBA DO SUL",141,22,null,"6º","PODEROSO CHEFINHO","RODRIGO/BRUNO","PETRÓPOLIS",133,22]
["7º","FOGUETE","GABRIEL/LEANDRO","PARAÍBA DO SUL",118,21,null,"7º","SAMA","LUCAS","TRÊS RIOS",143,21,null,"7º","FARRAPO DOIDO","JOÃO MARCOS","AREAL",136,21,null,"7º","ALMEJADO","GABRIEL/DJ RODRIGO","PARAÍBA DO SUL",141,21,null,"7º","MAGNÍFICO","CH FAMÍLIA MINGAL","PARAÍBA DO SUL",132,21]
["8º","ABRAÃO","WILLIAN","MATIAS BARBOSA",117,20,null,"8º","ABISMO","GUSTAVO/JHONATA","PARAÍBA DO SUL",133,20,null,"8º","XODÓ","GUSTAVO/GILSON","TRÊS RIOS/S. DUMONT",135,20,null,"8º","INVASÃO","WATILA","JUIZ DE FORA",139,20,null,"8º","TRUQUE","REGINALDO","PETRÓPOLIS",129,20]
["9º","GUERREIRO","ANTÔNIO MENEGUIT","CACHOEIRAS DE MACACU",116,19,null,"9º","PETER PAN","RAFAEL","PARAÍBA DO SUL",132,19,null,"9º","GARGALHADA","CICINHO","PARAÍBA DO SUL",134,19,null,"9º","BINHA PRETO","EULER","TRÊS RIOS",134,19,null,"9º","TUBARÃO","RONYELLE","TRÊS RIOS",126,19]
["10º","MAGNÍFICO","CH FAMÍLIA MINGAL","PARAÍBA DO SUL",114,18,null,"10º","MALUCO BELEZA","ZAL","JUIZ DE FORA",129,18,null,"10º","PESADELO","HENRIQUE","ANTA",130,18,null,"10º","FARRAPO DOIDO","JOÃO MARCOS","AREAL",131,18,null,"10º","RAGNAR","DANILO MOREIRA","TRÊS RIOS",122,18]
["11º","JAMELÃO","CH FAMÍLIA MINGAL","PARAÍBA DO SUL",114,17,null,"11º","MAGNÍFICO","CH FAMÍLIA MINGAL","PARAÍBA DO SUL",128,17,null,"11º","MAGNÍFICO","CH FAMÍLIA MINGAL","PARAÍBA DO SUL",130,17,null,"11º","PIVETE","GILSON/GUSTAVO","TRÊS RIOS/S. DUMONT",130,17,null,"11º","BICO DE PRATA","GUSTAVO","PARAÍBA DO SUL",115,17]
["12º","PIVETE","GILSON/GUSTAVO","TRÊS RIOS/S. DUMONT",111,16,null,"12º","BINHA PRETO","EULER","TRÊS RIOS",128,16,null,"12º","FIEL","DANIEL","JUIZ DE FORA",128,16,null,"12º","SHARK","DINO","MATIAS BARBOSA",129,16,null,"12º","SONIC","CT ALPHA","PARAÍBA DO SUL",113,16]
["13º","BISON","NATHAN","LEVY GASPARIAN",107,15,null,"13º","JAMELÃO","CH FAMÍLIA MINGAL","PARAÍBA DO SUL",126,15,null,"13º","FOGUETE","LEANDRO/GABRIEL","PARAÍBA DO SUL",126,15,null,"13º","SONIC","CT ALPHA","PARAÍBA DO SUL",127,15,null,"13º","TET","THIAGO/RONYELLE","TRÊS RIOS",110,15]
["14º","BOLT","RODRIGO/BRUNO","PETRÓPOLIS",107,14,null,"14º","WOLVERINE","KAUAN","PATY DO ALFERES",119,14,null,"14º","MALIBU","NICOLAS","PETRÓPOLIS",121,14,null,"14º","ABUTRE","RODRIGO/BRUNO","PETRÓPOLIS",126,14,null,"14º","PIVETE","GILSON/GUSTAVO","TRÊS RIOS/S. DUMONT",103,14]
["15º","SAMA","LUCAS","TRÊS RIOS",105,13,null,"15º","CHARADA","HENRIQUE","PARAÍBA DO SUL",118,13,null,"15º","CHARADA","HENRIQUE/CH","PARAÍBA DO SUL",107,13,null,"15º","MAGNÍFICO","CH FAMÍLIA MINGAL","PARAÍBA DO SUL",115,13,null,"15º","CARRASCO","LUCAS","TRÊS RIOS",103,13]
["16º","RARIDADE","GUSTAVO/JHONATA","PARAÍBA DO SUL",98,null,null,"16º","PATRÃO","WL FAMÍLIA MINGAL","PARAÍBA DO SUL",115,null,null,"16º","WOLVERINE","KAUAN","PATY DO ALFERES",105,null,null,"16º","GARGALHADA","CICINHO","PARAÍBA DO SUL",113,null,null,"16º","FOGUETE","LEANDRO/GABRIEL","PARAÍBA DO SUL",101]
["17º","DUBAI","BRUNO","TRÊS RIOS",96,null,null,"17º","VENON JÚNIOR","MURILO","TRÊS RIOS",113,null,null,"17º","FILHOTE","FAMÍLIA MINGAL","PARAÍBA DO SUL",104,null,null,"17º","VENON JÚNIOR","MURILO","TRÊS RIOS",108,null,null,"17º","CHARADA","UESLEI","PARAÍBA DO SUL",100]
["18º","VENON JÚNIOR","MURILO","TRÊS RIOS",86,null,null,"18º","PIVETE","LISANDRO","VASSOURAS",111,null,null,"18º","DELEGADO","KAUAN","PATY DO ALFERES",102,null,null,"18º","CHARADA","JOSENILTON/GABRIEL MARTINS","PARAÍBA DO SUL",104,null,null,"18º","FERRARI","REGINALDO","PETRÓPOLIS",98]
["19º","JILÓ","WL FAMÍLIA MINGAL","PARAÍBA DO SUL",75,null,null,"19º","TRUQUE","REGINALDO","PETRÓPOLIS",110,null,null,"19º","LAMPIÃO","GABRIEL","PETRÓPOLIS",94,null,null,"19º","DUBAI","BRUNO","TRÊS RIOS",103,null,null,"19º","SEM LIMITE","GABRIEL/DJ RODRIGO","PARAÍBA DO SUL",98]
["20º","SANTA FÉ","GUSTAVO/GILSON","TRÊS RIOS/S. DUMONT",75,null,null,"20º","FOGUETE","LEANDRO/GABRIEL","PARAÍBA DO SUL",102,null,null,"20º","ABUTRE","RODRIGO/BRUNO","PETRÓPOLIS",93,null,null,"20º","CORUJA","KLEBER SILVA","PETRÓPOLIS",102,null,null,"20º","PARDAL","WL FAMÍLIA MINGAL","PARAÍBA DO SUL",86]
["21º","WOLVERINE","KAUAN","PATY DO ALFERES",70,null,null,"21º","PIVETE","GILSON/GUSTAVO","TRÊS RIOS/S. DUMONT",100,null,null,"21º","FERRARI","REGINALDO","PETRÓPOLIS",92,null,null,"21º","BOOBIE GOODY","EULER","TRÊS RIOS",102,null,null,"21º","BALINHA","WL FAMÍLIA MINGAL","PARAÍBA DO SUL",83]
["22º","BRT","SANDRO","ANTA",66,null,null,"22º","FUGITIVO","LUCIANO","PARAÍBA DO SUL",100,null,null,"22º","PIVETE","GUSTAVO/GILSON","TRÊS RIOS/S. DUMONT",86,null,null,"22º","DO BRONX","PABLO","ITAIPAVA",100,null,null,"22º","BISON","NATHAN","LEVY GASPARIAN",80]
["23º","MARTELETE","JONAS","TRÊS RIOS",53,null,null,"23º","BISON","NATHAN","LEVY GASPARIAN",94,null,null,"23º","RARIDADE","GUSTAVO/JHONATA","PARAÍBA DO SUL",78,null,null,"23º","REVOADA","VITINHO","JUIZ DE FORA",94,null,null,"23º","HULK","WILLIAN","TRÊS RIOS",76]
["24º","MENINO MALUCO","BRUNO","TRÊS RIOS",49,null,null,"24º","RÁPIDO","BRUNO","TRÊS RIOS",94,null,null,"24º","COBRA","EDU","TRÊS RIOS",70,null,null,"24º","IMPERADOR","GABRIEL","PETRÓPOLIS",93,null,null,"24º","REVELAÇÃO","ANTÔNIO MENEGUIT","CACHOEIRAS DE MACACU",76]
["25º",null,null,null,null,null,null,"25º","DUBAI","BRUNO","TRÊS RIOS",93,null,null,"25º","BICO DE PRATA","GUSTAVO","PARAÍBA DO SUL",62,null,null,"25º","220","LEANDRO/RUAN","PARAÍBA DO SUL",91,null,null,"25º","TAURUS","HENRIQUE","ANTA",66]
["26º",null,null,null,null,null,null,"26º","PISTOLA","CARLOS DENGO","PETRÓPOLIS",92,null,null,"26º","CORUJA","RODRIGO/BRUNO","PETRÓPOLIS",61,null,null,"26º","FERRARI","REGINALDO","PETRÓPOLIS",90,null,null,"26º","VENON","MURILO","TRÊS RIOS",43]
["27º",null,null,null,null,null,null,"27º","FILHOTE","FAMÍLIA MINGAL","PARAÍBA DO SUL",92,null,null,"27º","REVOADA","VITINHO","JUIZ DE FORA",40,null,null,"27º","VELOSTER","SOLDADO","NOVA IGUAÇU",87,null,null,"27º","IMPERADOR","GABRIEL","PETRÓPOLIS",37]
["28º",null,null,null,null,null,null,"28º","ATOM","LUIS FERNANDO","?",90,null,null,"28º","DA ROÇA","NATHAN","LEVY GASPARIAN",34,null,null,"28º","TUBARÃO","RONYELLE","TRÊS RIOS",84,null,null,"28º"]
["29º",null,null,null,null,null,null,"29º","GARNIZE","NICOLAS","PETRÓPOLIS",83,null,null,"29º",null,null,null,null,null,null,"29º","RARIDADE","GUSTAVO/JHONATA","PARAÍBA DO SUL",83,null,null,"29º"]
["30º",null,null,null,null,null,null,"30º","CIBORG","HENRIQUE","ANTA",78,null,null,"30º",null,null,null,null,null,null,"30º","COLISEU","GABRIEL/DJ RODRIGO","PARAÍBA DO SUL",80,null,null,"30º"]
["31º",null,null,null,null,null,null,"31º","ARO 20","CT DOS MOLEQUES","PARAÍBA DO SUL",76,null,null,"31º",null,null,null,null,null,null,"31º","PIRRALHO","TANIEL","?",79,null,null,"31º"]
["32º",null,null,null,null,null,null,"32º","PELÉ","WILLIAM","TRÊS RIOS",70,null,null,"32º",null,null,null,null,null,null,"32º","FILHOTE","FAMÍLIA MINGAL","PARAÍBA DO SUL",76,null,null,"32º"]
["33º",null,null,null,null,null,null,"33º","SPOCK","DANIEL/TIM","JUIZ DE FORA",66,null,null,"33º",null,null,null,null,null,null,"33º","HUGAL","WILLIAN","TRÊS RIOS",71,null,null,"33º"]
["34º",null,null,null,null,null,null,"34º","BRADDOCK","GUSTAVO/JHONATA","PARAÍBA DO SUL",65,null,null,"34º",null,null,null,null,null,null,"34º","PÂNICO","GABRIEL/VLADIMIR","PARAÍBA DO SUL",55,null,null,"34º"]
["35º",null,null,null,null,null,null,"35º",null,null,null,null,null,null,"35º",null,null,null,null,null,null,"35º",null,null,null,null,null,null,"35º"]
["36º",null,null,null,null,null,null,"36º",null,null,null,null,null,null,"36º",null,null,null,null,null,null,"36º",null,null,null,null,null,null,"36º"]
["37º",null,null,null,null,null,null,"37º",null,null,null,null,null,null,"37º",null,null,null,null,null,null,"37º",null,null,null,null,null,null,"37º"]
["38º",null,null,null,null,null,null,"38º",null,null,null,null,null,null,"38º",null,null,null,null,null,null,"38º",null,null,null,null,null,null,"38º"]
["39º",null,null,null,null,null,null,"39º",null,null,null,null,null,null,"39º",null,null,null,null,null,null,"39º",null,null,null,null,null,null,"39º"]
["40º",null,null,null,null,null,null,"40º",null,null,null,null,null,null,"40º",null,null,null,null,null,null,"40º",null,null,null,null,null,null,"40º"]

{"sheet":"nov2025","index":4,"n_rows":42,"n_cols":28,"rows_kept":42,"cut":false,"hidden":false,"merged":[[0,0,0,5],[0,7,0,12],[0,14,0,20],[0,22,0,27]]}
["05/11/2025 (QUARTA-FEIRA)",null,null,null,null,null,null,"12/11/2025 (QUARTA-FEIRA)",null,null,null,null,null,null,"20/11/2025 (QUINTA-FEIRA)",null,null,null,null,null,null,null,"26/11/2025 (QUARTA-FEIRA)"]
["POS.","PÁSSARO","PROPRIETÁRIO","ORIGEM","CANTOS","PONTOS",null,"POS.","PÁSSARO","PROPRIETÁRIO","ORIGEM","CANTOS","PONTOS",null,"POS.","PÁSSARO","PROPRIETÁRIO","ORIGEM","VASS.","CANTOS","PONTOS",null,"POS.","PÁSSARO","PROPRIETÁRIO","ORIGEM","CANTOS","PONTOS"]
["1º","BALINHA","WL FAMÍLIA MINGAL","PARAÍBA DO SUL",168,30,null,"1º","JÓ","ANDRÉ LUIS","PARAÍBA DO SUL",194,30,null,"1º","LEÃO BRANCO","CUNHA","CARATINGA",139,203,30,null,"1º","MAGNÍFICO","CH FAMÍLIA MINGAL","PARAÍBA DO SUL",267,30]
["2º","TRUQUE","REGINALDO","PETRÓPOLIS",167,28,null,"2º","FOGUETE","LEANDRO/GABRIEL","PARAÍBA DO SUL",185,28,null,"2º","GABIGOL","RAPHAEL/ROGÉRIO","MATIAS BARBOSA",112,189,28,null,"2º","GATILHO","PEDRO","JUIZ DE FORA",215,28]
["3º","PÉROLA NEGRA","ROMÁRIO OLIVEIRA","PETRÓPOLIS",167,26,null,"3º","BALINHA","WL FAMÍLIA MINGAL","PARAÍBA DO SUL",180,26,null,"3º","MEGAMENTE","FLÁVIO","PATY DO ALFERES",94,172,26,null,"3º","PANTERA NEGRA","PABLO","ITAIPAVA",182,26]
["4º","PANTERA NEGRA","PABLO","ITAIPAVA",159,24,null,"4º","PIVETE","GILSON/GUSTAVO","TRÊS RIOS/S. DUMONT",174,24,null,"4º","CHUCALHO DE COBRA","LUCIMAR/LUIZ HENRIQUE","TRÊS RIOS",83,166,24,null,"4º","RENEGADO","GABRIEL","PETRÓPOLIS",181,24]
["5º","762","DEIVID","JUIZ DE FORA",158,23,null,"5º","PANTERA NEGRA","PABLO","ITAIPAVA",152,23,null,"5º","PANTERA NEGRA","PABLO","ITAIPAVA",108,160,23,null,"5º","MAVERICK","ANDRÉ LUIS","PARAÍBA DO SUL",181,23]
["6º","TAURUS","HENRIQUE","ANTA",153,22,null,"6º","OURO FINO","LUCAS","TRÊS RIOS",152,22,null,"6º","PERIGO","JOANES","PARAÍBA DO SUL",126,153,22,null,"6º","V10","JÚNIOR PACHECO","TRÊS RIOS",180,22]
["7º","PODEROSO CHEFINHO","RODRIGO/BRUNO","PETRÓPOLIS",151,21,null,"7º","MAGO","CLÓVIS","TRÊS RIOS",152,21,null,"7º","FARAÓ","ANDRÉ LUIS","PARAÍBA DO SUL",129,150,21,null,"7º","BALINHA","WL FAMÍLIA MINGAL","PARAÍBA DO SUL",144,21]
["8º","É O AÇO","RODRIGO","VASSOURAS",150,20,null,"8º","BELGA","KLEBER SILVA","PETRÓPOLIS",136,20,null,"8º","FOGUETE","GABRIEL/LEANDRO","PARAÍBA DO SUL",114,149,20,null,"8º","IMPERADOR","LEANDRO/GABRIEL","PARAÍBA DO SUL",137,20]
["9º","RED BULL","JUNIN","JUIZ DE FORA",135,19,null,"9º","PODEROSO CHEFINHO","RODRIGO/BRUNO","PETRÓPOLIS",126,19,null,"9º","BALINHA","WL FAMÍLIA MINGAL","PARAÍBA DO SUL",126,145,19,null,"9º","GOKU","LEONARDO","SANTOS DUMONT",128,19]
["10º","PIVETE","GILSON/GUSTAVO","TRÊS RIOS/S. DUMONT",128,18,null,"10º","RARIDADE","CT ALPHA","PARAÍBA DO SUL",123,18,null,"10º","PODEROSO CHEFINHO","RODRIGO/BRUNO","PETRÓPOLIS",71,134,18,null,"10º","FOGUETE","LEANDRO/GABRIEL","PARAÍBA DO SUL",127,18]
["11º","MENINO DO MORRO","GABRIEL/VLADIMIR","PARAÍBA DO SUL",126,17,null,"11º","HERÓI DE GUERRA","RODRIGO/BRUNO","PETRÓPOLIS",122,17,null,"11º","FARRAPO DOIDO","JOÃO MARCOS","AREAL",93,130,17,null,"11º","DO BRONX","PABLO","PETRÓPOLIS",115,17]
["12º","PIRATA","ROMÁRIO OLIVEIRA","PETRÓPOLIS",125,16,null,"12º","DO BRONX","PABLO","PETRÓPOLIS",121,16,null,"12º","TREM","MARCO AURÉLIO","PARAÍBA DO SUL",83,129,16,null,"12º","EXPRESSO","RAUANI VALLE","TRÊS RIOS",115,16]
["13º","FOGUETE","LEANDRO/GABRIEL","PARAÍBA DO SUL",123,15,null,"13º","GARNIZE","PABLO","ITAIPAVA",121,15,null,"13º","DO BRONX","PABLO","PETRÓPOLIS",101,127,15,null,"13º","PRESTÍGIO","RUAN","PARAÍBA DO SUL",113,15]
["14º","RAGNAR","DANILO MOREIRA","TRÊS RIOS",122,14,null,"14º","TRUQUE","REGINALDO","PETRÓPOLIS",119,14,null,"14º","OURO FINO","LUCAS","TRÊS RIOS",81,118,14,null,"14º","TRUQUE","REGINALDO","PETRÓPOLIS",110,14]
["15º","BICO DE PRATA","GUSTAVO","PARAÍBA DO SUL",114,13,null,"15º","DUBAI","VALDO","TRÊS RIOS",119,13,null,"15º","MAGNÍFICO","CH FAMÍLIA MINGAL","PARAÍBA DO SUL",87,116,13,null,"15º","XODÓ","CLÓVIS","TRÊS RIOS",105,13]
["16º","NEYMAR","JOSÉ SÉRGIO","PARAÍBA DO SUL",107,null,null,"16º","BAIXARIA","FAMÍLIA HONORATO","PARAÍBA DO SUL",117,null,null,"16º","BAIANINHO","LUCAS","TRÊS RIOS",62,101,null,null,"16º","MAESTRO","CH FAMÍLIA MINGAL","PARAÍBA DO SUL",103]
["17º","BRUXO","GABRIEL MARTINS/RICARDINHO","PARAÍBA DO SUL",106,null,null,"17º","PARDAL","WL FAMÍLIA MINGAL","PARAÍBA DO SUL",107,null,null,"17º","MARGARINA","CLÁUDIO MÁRCIO","TRÊS RIOS",58,97,null,null,"17º","RAT","THIAGO RONYELLE","TRÊS RIOS",102]
["18º","MAGNÍFICO","CH FAMÍLIA MINGAL","PARAÍBA DO SUL",105,null,null,"18º","VARADÃO","RAPHAEL","MATIAS BARBOSA",104,null,null,"18º","ASTRO","DHACO","PARAÍBA DO SUL",104,94,null,null,"18º","GARGALHADA","CICINHO","PARAÍBA DO SUL",91]
["19º","TUBARÃO","RONYELLE","TRÊS RIOS",105,null,null,"19º","BISON","NATHAN","LEVY GASPARIAN",99,null,null,"19º","PRESTÍGIO","RUAN/LEANDRO","PARAÍBA DO SUL",84,94,null,null,"19º","ASTRO","FAMÍLIA MINGAL","PARAÍBA DO SUL",87]
["20º","DIGNO","JÚLIO CÉSAR","TRÊS RIOS",103,null,null,"20º","GAROTO","BRUNO","TRÊS RIOS",99,null,null,"20º","IMAGINÁRIO","FERNANDO SIMÃO","PETRÓPOLIS",72,91,null,null,"20º","MURALHA","RAPHAEL","MATIAS BARBOSA",84]
["21º","VENON","MURILO","TRÊS RIOS",103,null,null,"21º","SELVAGEM","HENRIQUE","TRÊS RIOS",97,null,null,"21º","BICO DE PRATA","GUSTAVO","PARAÍBA DO SUL",84,89,null,null,"21º","PATO DONALD","REGINALDO","PETRÓPOLIS",79]
["22º","RESISTENTE","JOSÉ SÉRGIO","PARAÍBA DO SUL",100,null,null,"22º","TAURUS","HENRIQUE","ANTA",89,null,null,"22º","REMI FILHO","RAFAEL","PARAÍBA DO SUL",71,79,null,null,"22º","FAIXA PRETA","GUSTAVO","PARAÍBA DO SUL",71]
["23º","MÍSTICO","SOLDADO","NOVA IGUAÇU",99,null,null,"23º","TUBARÃO","RONYELLE","TRÊS RIOS",88,null,null,"23º","FAIXA PRETA","GUSTAVO/DEIVID","PARAÍBA DO SUL",83,76,null,null,"23º","FAISKA","JOSÉ SÉRGIO","PARAÍBA DO SUL",58]
["24º","ABISMO","JHONATAS/GUSTAVO","PARAÍBA DO SUL",95,null,null,"24º","?","RAUANI VALLE","TRÊS RIOS",85,null,null,"24º","XODÓ","CLÓVIS/RODRIGO","TRÊS RIOS",95,75,null,null,"24º","PESADELO","HENRIQUE","ANTA",35]
["25º","POEKI","JAJA","JUIZ DE FORA",94,null,null,"25º","MAESTRO","CH FAMÍLIA MINGAL","PARAÍBA DO SUL",84,null,null,"25º","TOTÓ","GIBA","TRÊS RIOS",43,74,null,null,"25º","MUSTANG","JOSÉ SÉRGIO","PARAÍBA DO SUL",30]
["26º","XEQUE MATE","EULER","TRÊS RIOS",94,null,null,"26º","?","LEANDRO/RUAN","PARAÍBA DO SUL",80,null,null,"26º","CHICO BENTO","FLÁVIO","PATY DO ALFERES",79,50,null,null,"26º"]
["27º","THANOS","SILAS","TRÊS RIOS",91,null,null,"27º","RAT","THIAGO","TRÊS RIOS",80,null,null,"27º","RESISTENTE","JOSÉ SÉRGIO","PARAÍBA DO SUL",87,44,null,null,"27º"]
["28º","MURALHA","RAPHAEL","MATIAS BARBOSA",90,null,null,"28º","MÁGICO","EDGARD","TRÊS RIOS",76,null,null,"28º","SONIC","LORRAN","PETRÓPOLIS",64,26,null,null,"28º"]
["29º","VELOSTER","SOLDADO","NOVA IGUAÇU",86,null,null,"29º","IMPERADOR","GABRIEL","PETRÓPOLIS",69,null,null,"29º",null,null,null,null,null,null,null,"29º"]
["30º","INVASÃO","WATILA","JUIZ DE FORA",76,null,null,"30º","FÓRMULA 1","GILSON/GUSTAVO","TRÊS RIOS/S. DUMONT",62,null,null,"30º",null,null,null,null,null,null,null,"30º"]
["31º","LAMPIÃO","GABRIEL","PETRÓPOLIS",74,null,null,"31º","MAD","CH FAMÍLIA MINGAL","PARAÍBA DO SUL",56,null,null,"31º",null,null,null,null,null,null,null,"31º"]
["32º","CORUJA","KLEBER SILVA","PETRÓPOLIS",65,null,null,"32º","CABALLO SELVAGEM","GUSTAVO/GILSON","TRÊS RIOS/S. DUMONT",39,null,null,"32º",null,null,null,null,null,null,null,"32º"]
["33º","PANCADÃO","FILIPE PAVÃO","PETRÓPOLIS",65,null,null,"33º",null,null,null,null,null,null,"33º",null,null,null,null,null,null,null,"33º"]
["34º","GTA","FERNANDO","JUIZ DE FORA",60,null,null,"34º",null,null,null,null,null,null,"34º",null,null,null,null,null,null,null,"34º"]
["35º","RISADA","JOANES","PARAÍBA DO SUL",55,null,null,"35º",null,null,null,null,null,null,"35º",null,null,null,null,null,null,null,"35º"]
["36º","BOOBIE GOODY","EULER","TRÊS RIOS",51,null,null,"36º",null,null,null,null,null,null,"36º",null,null,null,null,null,null,null,"36º"]
["37º","STAR","ALEFE","TRÊS RIOS",38,null,null,"37º",null,null,null,null,null,null,"37º",null,null,null,null,null,null,null,"37º"]
["38º","TURBINA","DEIVID","JUIZ DE FORA",35,null,null,"38º",null,null,null,null,null,null,"38º",null,null,null,null,null,null,null,"38º"]
["39º",null,null,null,null,null,null,"39º",null,null,null,null,null,null,"39º",null,null,null,null,null,null,null,"39º"]
["40º",null,null,null,null,null,null,"40º",null,null,null,null,null,null,"40º",null,null,null,null,null,null,null,"40º"]

{"sheet":"dez2025","index":5,"n_rows":43,"n_cols":35,"rows_kept":43,"cut":false,"hidden":false,"merged":[[0,0,0,5],[0,7,0,12],[0,14,0,19],[0,21,0,27],[0,29,0,34]]}
["03/12/2025 (QUARTA-FEIRA)",null,null,null,null,null,null,"10/12/2025 (QUARTA-FEIRA)",null,null,null,null,null,null,"17/12/2025 (QUARTA-FEIRA)",null,null,null,null,null,null,"24/12/2025 QUARTA-FEIRA)",null,null,null,null,null,null,null,"31/12/2025 QUARTA-FEIRA)"]
["POS.","PÁSSARO","PROPRIETÁRIO","ORIGEM","CANTOS","PONTOS",null,"POS.","PÁSSARO","PROPRIETÁRIO","ORIGEM","CANTOS","PONTOS",null,"POS.","PÁSSARO","PROPRIETÁRIO","ORIGEM","CANTOS","PONTOS",null,"POS.","PÁSSARO","PROPRIETÁRIO","ORIGEM","VASS.","CANTOS","PONTOS",null,"POS.","PÁSSARO","PROPRIETÁRIO","ORIGEM","CANTOS","PONTOS"]
["1º","51","DANIEL","JUIZ DE FORA",200,30,null,"1º","URSO NEGRO","JUNINHO PACHECO","TRÊS RIOS",210,30,null,"1º","EXPRESSO","RAUANI VALLE","TRÊS RIOS",220,30,null,"1º","PIT BULL","JOÃO MARCOS","AREAL",107,215,30,null,"1º","BRAD PITT","FELIPE ROCHA","TRÊS RIOS",235,30]
["2º","IMPERADOR","LEANDRO/GABRIEL","PARAÍBA DO SUL",170,28,null,"2º","FÉ","MARCÃO","JUIZ DE FORA",173,28,null,"2º","NEXTEL","NATHAN","LEVY GASPARIAN",213,28,null,"2º","SURFISTA","CAÍQUE/KITO","MAR DE ESPANHA",135,205,28,null,"2º","FÉ","MARCÃO","JUIZ DE FORA",194,28]
["3º","NEXTEL","NATHAN","LEVY GASPARIAN",157,26,null,"3º","PANTERA NEGRA","PABLO","ITAIPAVA",170,26,null,"3º","REI DO FURDUNÇO","WILLIAN","TRÊS RIOS",185,26,null,"3º","JAMELÃO","CH F. MINGAL","PARAÍBA DO SUL",76,171,26,null,"3º","REI DA RUA","ANDRÉ LUIS","PARAÍBA DO SUL",194,26]
["4º","MAGNÍFICO","CH FAMÍLIA MINGAL","PARAÍBA DO SUL",152,24,null,"4º","REI DO FURDUNÇO","WILLIAN","TRÊS RIOS",165,24,null,"4º","LAMBADA","DANIEL","ITABERABA",183,24,null,"4º","JILÓ","GABRIEL/WL F. MINGAL","PARAÍBA DO SUL",77,160,24,null,"4º","PIT BULL","JOÃO MARCOS","AREAL",192,24]
["5º","FORASTEIRO","WL FAMÍLIA MINGAL","PARAÍBA DO SUL",148,23,null,"5º","EXPRESSO","RAUANI VALLE","TRÊS RIOS",160,23,null,"5º","FOGUETE","GABRIEL/LEANDRO","PARAÍBA DO SUL",172,23,null,"5º","POLÊMICO","FAMÍLIA MINGAL","PARAÍBA DO SUL",86,154,23,null,"5º","IMPERADOR","LEANDRO/GABRIEL","PARAÍBA DO SUL",178,23]
["6º","ROMÁRIO","MÁRCIO","PARAÍBA DO SUL",147,22,null,"6º","DO BRONX","PABLO","ITAIPAVA",155,22,null,"6º","PANTERA NEGRA","PABLO","ITAIPAVA",170,22,null,"6º","PANTERA NEGRA","PABLO","ITAIPAVA",117,150,22,null,"6º","ROMÁRIO","CH FAMÍLIA MINGAL","PARAÍBA DO SUL",177,22]
["7º","REI DO FURDUNÇO","WILLIAN","TRÊS RIOS",147,21,null,"7º","FORASTEIRO","WL FAMÍLIA MINGAL","PARAÍBA DO SUL",154,21,null,"7º","CARRASCO","LUCAS","TRÊS RIOS",167,21,null,"7º","IMPERADOR","GILSON/GUSTAVO","SANTOS DUMONT",96,146,21,null,"7º","PANTERA NEGRA","PABLO","ITAIPAVA",169,21]
["8º","EL DOIDO","JONAS","TRÊS RIOS",145,20,null,"8º","FOGUETE","LEANDRO/GABRIEL","PARAÍBA DO SUL",154,20,null,"8º","ANIMAL","DANILO MOREIRA","TRÊS RIOS",164,20,null,"8º","EL LOUCO","RAFAEL/JOSÉ SÉRGIO","NITERÓI",89,146,20,null,"8º","MOHAMED","JOÃO PEDRO","PARAÍBA DO SUL",154,20]
["9º","FOGUETE","LEANDRO/GABRIEL","PARAÍBA DO SUL",138,19,null,"9º","GARGALHADA","CICINHO","PARAÍBA DO SUL",151,19,null,"9º","BEIÇOLA","FABIANO","TRÊS RIOS",160,19,null,"9º","MIRAGEM","DIEGO","VISC. DO RIO BRANCO",124,145,19,null,"9º","FARRAPO DOIDO","MANDÍBULA","PETRÓPOLIS",150,19]
["10º","PANTERA NEGRA","PABLO","ITAIPAVA",136,18,null,"10º","BALINHA","WL FAMÍLIA MINGAL","PARAÍBA DO SUL",140,18,null,"10º","GALILEU","DANIEL/LUCAS","(?)",151,18,null,"10º","FOGUETE","GABRIEL/LEANDRO","PARAÍBA DO SUL",111,127,18,null,"10º","PODEROSO CHEFINHO","BRUNO/RODRIGO","PETRÓPOLIS",144,18]
["11º","JÓ","ANDRÉ LUIS","PARAÍBA DO SUL",134,17,null,"11º","PODEROSO CHEFINHO","RODRIGO/BRUNO","PETRÓPOLIS",132,17,null,"11º","FORASTEIRO","WL/F. MINGAL","PARAÍBA DO SUL",141,17,null,"11º","MARRENTO","GUSTAVO/GILSON","SANTOS DUMONT",90,123,17,null,"11º","FOGUETE","LEANDRO/GABRIEL","PARAÍBA DO SUL",143,17]
["12º","BALINHA","WL FAMÍLIA MINGAL","PARAÍBA DO SUL",133,16,null,"12º","ANIMAL","DANILO","TRÊS RIOS",132,16,null,"12º","BALINHA","WL/F. MINGAL","PARAÍBA DO SUL",135,16,null,"12º","ESPOLETA","RAFAEL","NITERÓI",84,121,16,null,"12º","LAMPIÃO","ZECA/LUÍS","CHIADOR",137,16]
["13º","PRESTÍGIO","RUAN","PARAÍBA DO SUL",133,15,null,"13º","DELEGADO","KAUAN","PATY DO ALFERES",127,15,null,"13º","MOHAMED","CT ALPHA","PARAÍBA DO SUL",134,15,null,"13º","COICE DE MULA","RAFAEL","PETRÓPOLIS",113,120,15,null,"13º","RENEGADO","GABRIEL","PETRÓPOLIS",132,15]
["14º","CHARADA","UESLEI","PARAÍBA DO SUL",132,14,null,"14º","RAT","THIAGO/RONYELLE","TRÊS RIOS",125,14,null,"14º","URSO NEGRO","JUNINHO PACHECO","TRÊS RIOS",134,14,null,"14º","BALINHA","WL FAM. MINGAL","PARAÍBA DO SUL",108,113,14,null,"14º","TRUQUE","REGINALDO","PETRÓPOLIS",128,14]
["15º","GARGALHADA","CICINHO","PARAÍBA DO SUL",131,13,null,"15º","VENENO","XANDI","?",120,13,null,"15º","ABRAÃO","WILLIAN","MATIAS BARBOSA",131,13,null,"15º","GARGALHADA","CICINHO","PARAÍBA DO SUL",91,112,13,null,"15º","EL LOUCO","JOSÉ SERGIO","PARAÍBA DO SUL",127,13]
["16º","BESTEIRINHA","EULER","TRÊS RIOS",130,null,null,"16º","MAGNÍFICO","CH FAMÍLIA MINGAL","PARAÍBA DO SUL",119,null,null,"16º","SONETO","(?)","PETRÓPOLIS",131,null,null,"16º","EL DOIDO","ROMÁRIO","PETRÓPOLIS",90,110,null,null,"16º","MATUÊ","LOIRINHO/DOMINGOS","PARAÍBA DO SUL",127]
["17º","COYOTE","CLODOALDO","TRÊS RIOS",127,null,null,"17º","IMPERADOR","LEANDRO/GABRIEL","PARAÍBA DO SUL",112,null,null,"17º","IMPERADOR","LEANDRO/GABRIEL","PARAÍBA DO SUL",130,null,null,"17º","PIVETE","GILSON/GUSTAVO","SANTOS DUMONT",90,108,null,null,"17º","MATRIX","EDGAR","TRÊS RIOS",126]
["18º","MAGO NEGRO","CLÓVIS/RODRIGO","TRÊS RIOS",124,null,null,"18º","TUBARÃO","RONYELLE","TRÊS RIOS",112,null,null,"18º","POLÊMICO","GABRIEL MARTINS/RICARDINHO","PARAÍBA DO SUL",129,null,null,"18º","BITOLA","ALCIMAR","SÃO PAULO",57,100,null,null,"18º","BERLIM","EDER","TRÊS RIOS",122]
["19º","PETER PAN","RAFAEL","PARAÍBA DO SUL",122,null,null,"19º","NOVATO","LUCIMAR/LUIZ HENRIQUE","TRÊS RIOS",105,null,null,"19º","DO BRONX","PABLO","PETRÓPOLIS",128,null,null,"19º","PARDAL","JOSENILTON","PARAÍBA DO SUL",92,93,null,null,"19º","FRANÇA","MANDÍBULA","PETRÓPOLIS",116]
["20º","THOR","JOÃO VITOR/JANDERSON","TRÊS RIOS",114,null,null,"20º","CHARADA","UESLEI","PARAÍBA DO SUL",104,null,null,"20º","VENOM","JÚNIOR MURILO","TRÊS RIOS",115,null,null,"20º","BRAD PITT","FELIPE","TRÊS RIOS",140,91,null,null,"20º","FERRARI","CT ALPHA","PARAÍBA DO SUL",114]
["21º","TUBARÃO","RONYELLE","TRÊS RIOS",110,null,null,"21º","NOVINHO","XEIA","PATY DO ALFERES",100,null,null,"21º","MIRAGE","MÁRCIO","PARAÍBA DO SUL",113,null,null,"21º","SHELBY","UILIAN/ISAAC","TRÊS RIOS",59,90,null,null,"21º","CLONE","GIBA","TRÊS RIOS",114]
["22º","PIVETE","GUSTAVO/JHONATA","PARAÍBA DO SUL",109,null,null,"22º","ASTRO","CT LIMA","PARAÍBA DO SUL",99,null,null,"22º","PIVETE","GILSON/GUSTAVO","TRÊS RIOS/S. DUMONT",100,null,null,"22º","GIBA","SANDRINHO","TRÊS RIOS",99,87,null,null,"22º","TE ALEJO","LUAN","PARAÍBA DO SUL",113]
["23º","PIT BULL","HENRIQUE","ANTA",103,null,null,"23º","GAGUINHO","JÚLIO","(?)",97,null,null,"23º","TRUQUE","REGINALDO","PETRÓPOLIS",97,null,null,"23º","EDWARD \"ED\"","OTONIEL","TRÊS RIOS",58,84,null,null,"23º","MALVADÃO","LEONARDO","PETRÓPOLIS",111]
["24º","ARRASCAETA","HENRIQUE","PARAÍBA DO SUL",94,null,null,"24º","V8","SÉRGIO","PARAÍBA DO SUL",93,null,null,"24º","ARRASCAETA","FABIANO","TRÊS RIOS",93,null,null,"24º","FILHOTE REI DA RUA","GUSTAVO/RAYANE","PARAÍBA DO SUL",75,60,null,null,"24º","GIBA","SANDRINHO","TRÊS RIOS",111]
["25º","PICA PAU","FELIPE","TRÊS RIOS",93,null,null,"25º","FÓRMULA 1","BIDU","PATY DO ALFERES",90,null,null,"25º","ROMÁRIO","CH F. MINGAL","PARAÍBA DO SUL",92,null,null,"25º","TE ALEJO","LUAN","PARAÍBA DO SUL",75,58,null,null,"25º","PIVETE","NI SANTANA","TRÊS RIOS",108]
["26º","PIVETE","ALAN","TRÊS RIOS",82,null,null,"26º","RISQUINHO","JOANES","PARAÍBA DO SUL",87,null,null,"26º","GENERAL","CT LIMA","PARAÍBA DO SUL",91,null,null,"26º","ARCANJO","CT LIMA/F. MINGAL","PARAÍBA DO SUL",51,29,null,null,"26º","DELEGADO DNA","VINÍCIUS DNA","PETRÓPOLIS",104]
["27º","CORUJA","KLEBER SILVA","PETRÓPOLIS",79,null,null,"27º","REVELAÇÃO","ANTÔNIO MENEGUIT","CACHOEIRA DE MACACU",83,null,null,"27º","GIBA","SANDRINHO","TRÊS RIOS",89,null,null,"27º",null,null,null,null,null,null,null,"27º","BRINQUEDO","LEONARDO","PETRÓPOLIS",101]
["28º","ASTERIX","RATINHO","VALENÇA",76,null,null,"28º","TRUQUE","REGINALDO","PETRÓPOLIS",82,null,null,"28º","MAGISTRAL","REGINALDO","PETRÓPOLIS",80,null,null,"28º",null,null,null,null,null,null,null,"28º","DREHER","OTONIEL","TRÊS RIOS",98]
["29º","FORA DA LEI","GILSON/GUSTAVO","TRÊS RIOS/S. DUMONT",74,null,null,"29º","FORJA","HENRIQUE MORAES","SÃO JOSÉ",71,null,null,"29º","PRESTINHA","EULER","TRÊS RIOS",79,null,null,"29º",null,null,null,null,null,null,null,"29º","BICO BRANCO","GABRIEL MARTINS/RICARDINHO","PARAÍBA DO SUL",92]
["30º","SEDEX","NATHAN","LEVY GASPARIAN",74,null,null,"30º","SHELBY","UILIAN/ISAAC","TRÊS RIOS",68,null,null,"30º","CHUMBO GROSSO","CLÁUDIO","MIGUEL PEREIRA",77,null,null,"30º",null,null,null,null,null,null,null,"30º","MAGISTRAL","REGINALDO","PETRÓPOLIS",90]
["31º","LOCOMOTIVA","CLÓVIS/RODRIGO","TRÊS RIOS",71,null,null,"31º","SUB ZERO","ANDRÉ FREITAS","PETRÓPOLIS",65,null,null,"31º","EL LOKO","VINÍCIUS DNA","PETRÓPOLIS",70,null,null,"31º",null,null,null,null,null,null,null,"31º","PICOLINO","LUCAS C.","TRÊS RIOS",87]
["32º","THANOS","SILAS","TRÊS RIOS",70,null,null,"32º","ARRASCAETA","HENRIQUE","PARAÍBA DO SUL",65,null,null,"32º","TORPEDO","LEONARDO","PARAÍBA DO SUL",67,null,null,"32º",null,null,null,null,null,null,null,"32º","ZELDA","MANDÍBULA","PETRÓPOLIS",84]
["33º","ZORRO","VINÍCIUS","AREAL",60,null,null,"33º","FILHOTE","FAMÍLIA MINGAL/CT LIMA","PARAÍBA DO SUL",59,null,null,"33º","ANDROID","HENRIQUE","ANTA",58,null,null,"33º",null,null,null,null,null,null,null,"33º","FLAMENGO","GEGE","TRÊS RIOS",83]
["34º","ARCANJO","MAYCON","TRÊS RIOS",50,null,null,"34º","ZORRO","VINÍCIUS","AREAL",56,null,null,"34º","FÉ","CÁSSIO","TRÊS RIOS",51,null,null,"34º",null,null,null,null,null,null,null,"34º","ARCANJO","CT LIMA/MATHEUS","PARAÍBA DO SUL",75]
["35º","BELGA","KLEBER SILVA","PETRÓPOLIS",26,null,null,"35º",null,null,null,null,null,null,"35º","SELVAGEM","JOSENILTON","PARAÍBA DO SUL",51,null,null,"35º",null,null,null,null,null,null,null,"35º","WOLVERINE","FÁBIO","TRÊS RIOS",74]
["36º",null,null,null,null,null,null,"36º",null,null,null,null,null,null,"36º",null,null,null,null,null,null,"36º",null,null,null,null,null,null,null,"36º","BAIANO","UILIAN","TRÊS RIOS",63]
["37º",null,null,null,null,null,null,"37º",null,null,null,null,null,null,"37º",null,null,null,null,null,null,"37º",null,null,null,null,null,null,null,"37º","PIVETE","ALAN PÉ DE PANO","TRÊS RIOS",60]
["38º",null,null,null,null,null,null,"38º",null,null,null,null,null,null,"38º",null,null,null,null,null,null,"38º",null,null,null,null,null,null,null,"38º","ARRASCAETA","FABIANO","TRÊS RIOS",59]
["39º",null,null,null,null,null,null,"39º",null,null,null,null,null,null,"39º",null,null,null,null,null,null,"39º",null,null,null,null,null,null,null,"39º","TALISMÃ","HENRIQUE","ANTA",54]
["40º",null,null,null,null,null,null,"40º",null,null,null,null,null,null,"40º",null,null,null,null,null,null,"40º",null,null,null,null,null,null,null,"40º","MENINO REI","SILAS FLÁVIO","TRÊS RIOS",53]
[null,null,null,null,null,null,null,null,null,null,null,null,null,null,null,null,null,null,null,null,null,null,null,null,null,null,null,null,null,"41º","FRAJOLA","LEONARDO","PETRÓPOLIS",47]